[Event "*** Titled Tuesday Blitz"]
[Site "Chess.com"]
[Date "2020.03.03"]
[Round "1"]
[White "GelmanAlexander"]
[Black "youngKID"]
[Result "0-1"]
[WhiteElo "2472"]
[BlackElo "2840"]
[TimeControl "180+1"]
[EndTime "9:08:12 PST"]
[Termination "youngKID won on time"]

1. e4 {[%clk 0:02:59.9]} 1... c5 {[%clk 0:02:58.9]} 2. b4 {[%clk 0:02:54.1]}
2... cxb4 {[%clk 0:02:58]} 3. a3 {[%clk 0:02:54]} 3... b3 {[%clk 0:02:53.7]} 4.
cxb3 {[%clk 0:02:46.7]} 4... d5 {[%clk 0:02:51.7]} 5. e5 {[%clk 0:02:42.2]} 5...
d4 {[%clk 0:02:50.4]} 6. Nf3 {[%clk 0:02:25.4]} 6... Bg4 {[%clk 0:02:16.7]} 7.
h3 {[%clk 0:02:13.5]} 7... Bxf3 {[%clk 0:02:16.1]} 8. Qxf3 {[%clk 0:02:10.5]}
8... Nc6 {[%clk 0:02:16.1]} 9. e6 {[%clk 0:01:46.8]} 9... fxe6 {[%clk
0:02:12.5]} 10. Bc4 {[%clk 0:01:30.7]} 10... Nf6 {[%clk 0:01:41.4]} 11. O-O
{[%clk 0:01:20.6]} 11... Ne5 {[%clk 0:01:29]} 12. Bb5+ {[%clk 0:01:08.6]} 12...
Kf7 {[%clk 0:01:29]} 13. Qg3 {[%clk 0:00:46.5]} 13... Qd5 {[%clk 0:01:19.1]} 14.
a4 {[%clk 0:00:37.6]} 14... a6 {[%clk 0:01:13.8]} 15. Be2 {[%clk 0:00:36.1]}
15... Rc8 {[%clk 0:01:06.1]} 16. Na3 {[%clk 0:00:34.1]} 16... d3 {[%clk
0:00:55.6]} 17. Bd1 {[%clk 0:00:31.6]} 17... b5 {[%clk 0:00:30.4]} 18. axb5
{[%clk 0:00:30]} 18... axb5 {[%clk 0:00:31.3]} 19. Re1 {[%clk 0:00:27.8]} 19...
Ned7 {[%clk 0:00:30.8]} 20. Bb2 {[%clk 0:00:26.4]} 20... g6 {[%clk 0:00:28.2]}
21. Nb1 {[%clk 0:00:17]} 21... b4 {[%clk 0:00:20.4]} 22. Ra6 {[%clk 0:00:16.8]}
22... Nc5 {[%clk 0:00:15.3]} 23. Ra5 {[%clk 0:00:15.7]} 23... Bg7 {[%clk
0:00:14.6]} 24. Re5 {[%clk 0:00:14.3]} 24... Qd6 {[%clk 0:00:14.7]} 25. f4
{[%clk 0:00:08]} 25... Ncd7 {[%clk 0:00:14.8]} 26. Qe3 {[%clk 0:00:06.9]} 26...
Nd5 {[%clk 0:00:11.5]} 27. Qxd3 {[%clk 0:00:06]} 27... Nxe5 {[%clk 0:00:09.4]}
28. fxe5 {[%clk 0:00:05.7]} 28... Bxe5 {[%clk 0:00:08.8]} 29. Bxe5 {[%clk
0:00:05.7]} 29... Qxe5 {[%clk 0:00:08.1]} 30. Bf3 {[%clk 0:00:03.9]} 30... Qe1+
{[%clk 0:00:07.9]} 31. Kh2 {[%clk 0:00:04]} 31... Rc1 {[%clk 0:00:07.2]} 32.
Rxd5 {[%clk 0:00:03]} 32... exd5 {[%clk 0:00:06.4]} 33. Bxd5+ {[%clk 0:00:02.8]}
33... Kg7 {[%clk 0:00:06.3]} 34. Qd4+ {[%clk 0:00:02.5]} 34... e5 {[%clk
0:00:06.8]} 35. Qa7+ {[%clk 0:00:02.6]} 35... Kh6 {[%clk 0:00:07.4]} 36. Qe7
{[%clk 0:00:01.7]} 36... Qg1+ {[%clk 0:00:06.3]} 37. Kg3 {[%clk 0:00:02.2]}
37... Qe1+ {[%clk 0:00:06.3]} 38. Kh2 {[%clk 0:00:02.7]} 38... Rxb1 {[%clk
0:00:06]} 39. Qf6 {[%clk 0:00:02.1]} 39... Rc8 {[%clk 0:00:05.3]} 40. Be4 {[%clk
0:00:01.5]} 40... Qg1+ {[%clk 0:00:04.8]} 41. Kg3 {[%clk 0:00:01.7]} 41... Qe1+
{[%clk 0:00:04.2]} 42. Kh2 {[%clk 0:00:01.6]} 42... Qxe4 {[%clk 0:00:02.7]} 0-1

[Event "*** Titled Tuesday Blitz"]
[Site "Chess.com"]
[Date "2020.03.03"]
[Round "1"]
[White "Sordis"]
[Black "Elshan1985"]
[Result "0-1"]
[WhiteElo "2377"]
[BlackElo "2731"]
[TimeControl "180+1"]
[EndTime "9:08:12 PST"]
[Termination "Elshan1985 won by checkmate"]

1. c3 {[%clk 0:02:47.4]} 1... g6 {[%clk 0:02:59.1]} 2. d4 {[%clk 0:02:44.9]}
2... Bg7 {[%clk 0:02:59.3]} 3. Bf4 {[%clk 0:02:44.3]} 3... d6 {[%clk 0:02:58.5]}
4. Nf3 {[%clk 0:02:43.6]} 4... Nc6 {[%clk 0:02:56.9]} 5. e3 {[%clk 0:02:42.3]}
5... e5 {[%clk 0:02:51.9]} 6. dxe5 {[%clk 0:02:41.2]} 6... dxe5 {[%clk
0:02:52.1]} 7. Qxd8+ {[%clk 0:02:41.2]} 7... Kxd8 {[%clk 0:02:53]} 8. Bg3 {[%clk
0:02:40.1]} 8... f6 {[%clk 0:02:51.1]} 9. Bb5 {[%clk 0:02:39.4]} 9... Nge7
{[%clk 0:02:47.7]} 10. Nbd2 {[%clk 0:02:39.2]} 10... a6 {[%clk 0:02:47.2]} 11.
Bc4 {[%clk 0:02:39]} 11... Bf5 {[%clk 0:02:41.8]} 12. O-O-O {[%clk 0:02:36.7]}
12... Kc8 {[%clk 0:02:41.4]} 13. e4 {[%clk 0:02:30.9]} 13... Bd7 {[%clk
0:02:41.2]} 14. Nf1 {[%clk 0:02:30.2]} 14... Na5 {[%clk 0:02:32.5]} 15. Bd3
{[%clk 0:02:24.9]} 15... Be6 {[%clk 0:02:11.3]} 16. b3 {[%clk 0:02:24.1]} 16...
b5 {[%clk 0:02:06]} 17. Kc2 {[%clk 0:02:19]} 17... c5 {[%clk 0:01:59.6]} 18. Ne3
{[%clk 0:02:15.5]} 18... Kb7 {[%clk 0:01:56]} 19. Nd2 {[%clk 0:02:09.6]} 19...
Bh6 {[%clk 0:01:41]} 20. Rhe1 {[%clk 0:02:08.7]} 20... Rhd8 {[%clk 0:01:37.6]}
21. f3 {[%clk 0:02:08.6]} 21... Rac8 {[%clk 0:01:28.7]} 22. Bf1 {[%clk
0:02:04.8]} 22... Nac6 {[%clk 0:01:24.3]} 23. Bf2 {[%clk 0:02:03.5]} 23... b4
{[%clk 0:01:05.9]} 24. Bc4 {[%clk 0:01:50.1]} 24... Bxe3 {[%clk 0:00:56.2]} 25.
Bxe3 {[%clk 0:01:49.3]} 25... Bxc4 {[%clk 0:00:56.2]} 26. Nxc4 {[%clk
0:01:48.8]} 26... bxc3 {[%clk 0:00:50]} 27. Kxc3 {[%clk 0:01:48.1]} 27... Nd4
{[%clk 0:00:49.6]} 28. Bxd4 {[%clk 0:01:37.1]} 28... cxd4+ {[%clk 0:00:48.7]}
29. Kd2 {[%clk 0:01:37.7]} 29... g5 {[%clk 0:00:41.2]} 30. Rc1 {[%clk
0:01:37.1]} 30... h5 {[%clk 0:00:41]} 31. Rc2 {[%clk 0:01:35.6]} 31... Nc6
{[%clk 0:00:33.6]} 32. a3 {[%clk 0:01:27]} 32... Na7 {[%clk 0:00:23.6]} 33. Rec1
{[%clk 0:01:22.6]} 33... Kb8 {[%clk 0:00:23.9]} 34. Nb2 {[%clk 0:01:17.4]} 34...
Rxc2+ {[%clk 0:00:23.3]} 35. Rxc2 {[%clk 0:01:17.5]} 35... Rc8 {[%clk 0:00:22]}
36. Nd3 {[%clk 0:01:16.7]} 36... Rxc2+ {[%clk 0:00:20.8]} 37. Kxc2 {[%clk
0:01:16.9]} 37... Kc7 {[%clk 0:00:20.4]} 38. a4 {[%clk 0:01:13.6]} 38... Nc6
{[%clk 0:00:19.3]} 39. b4 {[%clk 0:01:13.1]} 39... Kb6 {[%clk 0:00:17.4]} 40.
Kb3 {[%clk 0:01:13.1]} 40... a5 {[%clk 0:00:16.9]} 41. b5 {[%clk 0:01:09.9]}
41... Nd8 {[%clk 0:00:17.3]} 42. Kc4 {[%clk 0:01:06.8]} 42... Ne6 {[%clk
0:00:17.5]} 43. h3 {[%clk 0:01:04.4]} 43... h4 {[%clk 0:00:16.8]} 44. Kd5 {[%clk
0:01:02.7]} 44... Nc7+ {[%clk 0:00:12.8]} 45. Kd6 {[%clk 0:01:00.2]} 45... Nxb5+
{[%clk 0:00:13.1]} 46. axb5 {[%clk 0:00:58.4]} 46... Kxb5 {[%clk 0:00:13.8]} 47.
Ke6 {[%clk 0:00:56.2]} 47... a4 {[%clk 0:00:13.4]} 48. Kxf6 {[%clk 0:00:56.2]}
48... a3 {[%clk 0:00:13.9]} 49. Nc1 {[%clk 0:00:54.8]} 49... d3 {[%clk
0:00:14.4]} 50. Nxd3 {[%clk 0:00:48.1]} 50... a2 {[%clk 0:00:14.5]} 51. Nxe5
{[%clk 0:00:46.9]} 51... a1=Q {[%clk 0:00:14.4]} 52. Kf5 {[%clk 0:00:47.8]}
52... Qc1 {[%clk 0:00:11.5]} 53. Ng6 {[%clk 0:00:46.4]} 53... Qd2 {[%clk
0:00:11.1]} 54. e5 {[%clk 0:00:46.4]} 54... Qxg2 {[%clk 0:00:11.1]} 55. e6
{[%clk 0:00:46.5]} 55... Qxh3+ {[%clk 0:00:11.3]} 56. Kf6 {[%clk 0:00:46.6]}
56... Qxf3+ {[%clk 0:00:11.6]} 57. Kxg5 {[%clk 0:00:46.7]} 57... Qe3+ {[%clk
0:00:11.3]} 58. Kxh4 {[%clk 0:00:41.1]} 58... Qxe6 {[%clk 0:00:11.5]} 59. Kh5
{[%clk 0:00:41.7]} 59... Qf5+ {[%clk 0:00:11.4]} 60. Kh6 {[%clk 0:00:42.1]}
60... Qf6 {[%clk 0:00:11.8]} 61. Kh5 {[%clk 0:00:42.2]} 61... Kc6 {[%clk
0:00:12.1]} 62. Nh4 {[%clk 0:00:42.3]} 62... Qe5+ {[%clk 0:00:12]} 63. Kg4
{[%clk 0:00:42.5]} 63... Kd5 {[%clk 0:00:12]} 64. Nf5 {[%clk 0:00:42.5]} 64...
Qe4+ {[%clk 0:00:11.9]} 65. Kg5 {[%clk 0:00:42.8]} 65... Qg2+ {[%clk 0:00:12]}
66. Kf6 {[%clk 0:00:43]} 66... Qf2 {[%clk 0:00:12]} 67. Kg5 {[%clk 0:00:43.4]}
67... Ke5 {[%clk 0:00:11.7]} 68. Nh6 {[%clk 0:00:43.9]} 68... Qg3+ {[%clk
0:00:11.2]} 69. Ng4+ {[%clk 0:00:44.2]} 69... Ke6 {[%clk 0:00:11.2]} 70. Kh5
{[%clk 0:00:41.7]} 70... Kf5 {[%clk 0:00:11.1]} 71. Nh6+ {[%clk 0:00:41.8]}
71... Kf4 {[%clk 0:00:10.3]} 72. Nf7 {[%clk 0:00:41.5]} 72... Qg7 {[%clk
0:00:09.4]} 73. Kh4 {[%clk 0:00:36.2]} 73... Qh7+ {[%clk 0:00:08.9]} 74. Nh6
{[%clk 0:00:34.8]} 74... Qxh6# {[%clk 0:00:09.3]} 0-1

[Event "*** Titled Tuesday Blitz"]
[Site "Chess.com"]
[Date "2020.03.03"]
[Round "1"]
[White "Kobalia"]
[Black "isla88"]
[Result "0-1"]
[WhiteElo "2627"]
[BlackElo "2289"]
[TimeControl "180+1"]
[EndTime "9:08:18 PST"]
[Termination "isla88 won on time"]

1. e4 {[%clk 0:02:57.9]} 1... c5 {[%clk 0:03:00.2]} 2. Nf3 {[%clk 0:02:57.2]}
2... Nc6 {[%clk 0:02:58.7]} 3. Bb5 {[%clk 0:02:56.6]} 3... g6 {[%clk 0:02:55.6]}
4. Bxc6 {[%clk 0:02:56.4]} 4... dxc6 {[%clk 0:02:55.5]} 5. O-O {[%clk
0:02:56.6]} 5... Bg7 {[%clk 0:02:55.7]} 6. Re1 {[%clk 0:02:56.1]} 6... e5 {[%clk
0:02:55.7]} 7. d3 {[%clk 0:02:54.6]} 7... Qc7 {[%clk 0:02:54.9]} 8. a4 {[%clk
0:02:53.7]} 8... b6 {[%clk 0:02:54.3]} 9. a5 {[%clk 0:02:53]} 9... Rb8 {[%clk
0:02:50.5]} 10. Nbd2 {[%clk 0:02:51.3]} 10... Nf6 {[%clk 0:02:48.6]} 11. Nc4
{[%clk 0:02:50]} 11... Nd7 {[%clk 0:02:46.7]} 12. Bg5 {[%clk 0:02:49.1]} 12...
f6 {[%clk 0:02:32.1]} 13. Bd2 {[%clk 0:02:44.4]} 13... O-O {[%clk 0:02:24.1]}
14. c3 {[%clk 0:02:41.2]} 14... b5 {[%clk 0:02:19.6]} 15. Ne3 {[%clk 0:02:39.7]}
15... f5 {[%clk 0:02:16.5]} 16. exf5 {[%clk 0:02:31.6]} 16... gxf5 {[%clk
0:02:15.4]} 17. Qb3+ {[%clk 0:02:28.5]} 17... c4 {[%clk 0:02:04]} 18. dxc4
{[%clk 0:02:27.3]} 18... Nc5 {[%clk 0:02:04.1]} 19. Qa3 {[%clk 0:02:14.6]} 19...
Nd3 {[%clk 0:02:02.2]} 20. cxb5 {[%clk 0:02:12.8]} 20... Nxe1 {[%clk 0:01:57.9]}
21. Rxe1 {[%clk 0:02:10.6]} 21... cxb5 {[%clk 0:01:57]} 22. Nd5 {[%clk
0:02:08.2]} 22... Qd7 {[%clk 0:01:24]} 23. Ne7+ {[%clk 0:02:06.8]} 23... Kh8
{[%clk 0:01:24]} 24. Bg5 {[%clk 0:02:02.2]} 24... e4 {[%clk 0:01:22.1]} 25. Nd4
{[%clk 0:02:00.7]} 25... b4 {[%clk 0:01:17.5]} 26. Qa2 {[%clk 0:01:58.3]} 26...
h6 {[%clk 0:01:13.3]} 27. Bh4 {[%clk 0:01:57.1]} 27... Kh7 {[%clk 0:01:06.4]}
28. Nec6 {[%clk 0:01:41.3]} 28... Rb7 {[%clk 0:00:57]} 29. Rd1 {[%clk
0:01:19.7]} 29... Qf7 {[%clk 0:00:53.2]} 30. Qxf7 {[%clk 0:01:05.7]} 30... Rbxf7
{[%clk 0:00:52.2]} 31. Nxb4 {[%clk 0:01:04]} 31... f4 {[%clk 0:00:46.6]} 32.
Ndc6 {[%clk 0:00:57.4]} 32... Rd7 {[%clk 0:00:40.4]} 33. Re1 {[%clk 0:00:51.8]}
33... Re8 {[%clk 0:00:35.7]} 34. g3 {[%clk 0:00:44.6]} 34... f3 {[%clk
0:00:34.6]} 35. Nc2 {[%clk 0:00:43.1]} 35... Rd2 {[%clk 0:00:34.6]} 36. N6b4
{[%clk 0:00:34]} 36... Red8 {[%clk 0:00:30.9]} 37. Bxd8 {[%clk 0:00:29.9]} 37...
Rxd8 {[%clk 0:00:30]} 38. Rxe4 {[%clk 0:00:29.5]} 38... Bf5 {[%clk 0:00:28.9]}
39. Re1 {[%clk 0:00:28.8]} 39... Rd2 {[%clk 0:00:29.1]} 40. Ne3 {[%clk
0:00:24.6]} 40... Bg6 {[%clk 0:00:24.3]} 41. Nc6 {[%clk 0:00:21.2]} 41... Rxb2
{[%clk 0:00:23.1]} 42. Rc1 {[%clk 0:00:19.7]} 42... Bd3 {[%clk 0:00:20]} 43.
Nxa7 {[%clk 0:00:18.1]} 43... Bxc3 {[%clk 0:00:19.9]} 44. Nc6 {[%clk 0:00:15.9]}
44... Bd2 {[%clk 0:00:19.7]} 45. Ra1 {[%clk 0:00:07]} 45... Bxe3 {[%clk
0:00:19.2]} 46. a6 {[%clk 0:00:06.5]} 46... Bxf2+ {[%clk 0:00:18.9]} 47. Kh1
{[%clk 0:00:06.4]} 47... Be4 {[%clk 0:00:19.3]} 48. Ne5 {[%clk 0:00:03.3]} 48...
Bd4 {[%clk 0:00:18.5]} 0-1

[Event "*** Titled Tuesday Blitz"]
[Site "Chess.com"]
[Date "2020.03.03"]
[Round "1"]
[White "Anton_Demchenko"]
[Black "Zavgorodniy_Serg"]
[Result "1-0"]
[WhiteElo "2984"]
[BlackElo "2533"]
[TimeControl "180+1"]
[EndTime "9:08:19 PST"]
[Termination "Anton_Demchenko won by resignation"]

1. e4 {[%clk 0:03:00.8]} 1... e5 {[%clk 0:02:58.6]} 2. Nf3 {[%clk 0:02:59.3]}
2... d6 {[%clk 0:02:58.8]} 3. d4 {[%clk 0:02:58.2]} 3... exd4 {[%clk 0:02:59.7]}
4. Qxd4 {[%clk 0:02:58.2]} 4... Nc6 {[%clk 0:02:58.6]} 5. Bb5 {[%clk 0:02:56.6]}
5... Bd7 {[%clk 0:02:58.8]} 6. Bxc6 {[%clk 0:02:56.8]} 6... Bxc6 {[%clk
0:02:59.7]} 7. Nc3 {[%clk 0:02:57.4]} 7... Nf6 {[%clk 0:02:59.7]} 8. Bg5 {[%clk
0:02:56.2]} 8... Be7 {[%clk 0:02:59.9]} 9. O-O-O {[%clk 0:02:56.6]} 9... O-O
{[%clk 0:02:59.9]} 10. Rhe1 {[%clk 0:02:56.9]} 10... h6 {[%clk 0:02:57]} 11. Bh4
{[%clk 0:02:52]} 11... Re8 {[%clk 0:02:55.1]} 12. h3 {[%clk 0:02:47.5]} 12...
Nd7 {[%clk 0:02:50.1]} 13. Bxe7 {[%clk 0:02:34]} 13... Qxe7 {[%clk 0:02:48.9]}
14. Nd5 {[%clk 0:02:28.6]} 14... Bxd5 {[%clk 0:02:48.2]} 15. Qxd5 {[%clk
0:02:29.5]} 15... Qf6 {[%clk 0:02:33.8]} 16. Re3 {[%clk 0:02:00.6]} 16... Ne5
{[%clk 0:01:58.1]} 17. Nxe5 {[%clk 0:01:45]} 17... Qxe5 {[%clk 0:01:54.5]} 18.
Qb3 {[%clk 0:01:35.9]} 18... Qf4 {[%clk 0:01:43.7]} 19. Kb1 {[%clk 0:01:15]}
19... Rxe4 {[%clk 0:01:34.2]} 20. Rf3 {[%clk 0:01:04.9]} 20... Qd2 {[%clk
0:01:21.2]} 21. Qxf7+ {[%clk 0:00:33.6]} 21... Kh8 {[%clk 0:01:18.9]} 22. Rd3
{[%clk 0:00:33.5]} 22... Qa5 {[%clk 0:01:07.7]} 23. a3 {[%clk 0:00:24.9]} 23...
Re2 {[%clk 0:00:37.9]} 24. Rg3 {[%clk 0:00:21.8]} 24... Rg8 {[%clk 0:00:37.4]}
25. Qf3 {[%clk 0:00:15.3]} 25... Re1 {[%clk 0:00:30.5]} 26. Rxe1 {[%clk
0:00:14.7]} 26... Qxe1+ {[%clk 0:00:31.4]} 27. Ka2 {[%clk 0:00:15.1]} 27... c6
{[%clk 0:00:24.8]} 28. Qe3 {[%clk 0:00:12.7]} 28... Re8 {[%clk 0:00:24]} 29.
Qxa7 {[%clk 0:00:10]} 29... Qd2 {[%clk 0:00:15.1]} 30. Qxb7 {[%clk 0:00:07.6]}
30... Rg8 {[%clk 0:00:11.7]} 31. Qb6 {[%clk 0:00:06.2]} 31... Qxc2 {[%clk
0:00:10.1]} 32. Qd4 {[%clk 0:00:06.5]} 32... c5 {[%clk 0:00:09.6]} 33. Qc3
{[%clk 0:00:06.9]} 33... Qf5 {[%clk 0:00:09]} 34. Rf3 {[%clk 0:00:05.2]} 34...
Qe6+ {[%clk 0:00:08.8]} 35. Ka1 {[%clk 0:00:04.7]} 35... Re8 {[%clk 0:00:08.1]}
36. Re3 {[%clk 0:00:04.7]} 36... Qf7 {[%clk 0:00:07.6]} 37. Rxe8+ {[%clk
0:00:04.6]} 37... Qxe8 {[%clk 0:00:08.5]} 38. Qd2 {[%clk 0:00:02.7]} 38... Qc6
{[%clk 0:00:06.5]} 39. f3 {[%clk 0:00:02.5]} 39... d5 {[%clk 0:00:06.8]} 40. Kb1
{[%clk 0:00:03.1]} 40... d4 {[%clk 0:00:07.2]} 41. Kc1 {[%clk 0:00:03.7]} 41...
Qd5 {[%clk 0:00:07.8]} 42. Qc2 {[%clk 0:00:03.1]} 42... c4 {[%clk 0:00:08.2]}
43. Qe4 {[%clk 0:00:02.5]} 43... Qd6 {[%clk 0:00:07.5]} 44. f4 {[%clk
0:00:02.7]} 44... Qc5 {[%clk 0:00:07.2]} 45. Qe8+ {[%clk 0:00:02.4]} 45... Kh7
{[%clk 0:00:07.2]} 46. Qe4+ {[%clk 0:00:03.3]} 46... Kg8 {[%clk 0:00:07.6]} 47.
Qe5 {[%clk 0:00:04.2]} 47... Qxe5 {[%clk 0:00:03.1]} 48. fxe5 {[%clk 0:00:04.4]}
48... Kf7 {[%clk 0:00:04]} 49. a4 {[%clk 0:00:03.6]} 49... Ke6 {[%clk
0:00:04.6]} 50. a5 {[%clk 0:00:04.2]} 50... Kxe5 {[%clk 0:00:05.5]} 51. a6
{[%clk 0:00:04.8]} 1-0

[Event "*** Titled Tuesday Blitz"]
[Site "Chess.com"]
[Date "2020.03.03"]
[Round "1"]
[White "Nalatac"]
[Black "MikaelyanArman"]
[Result "0-1"]
[WhiteElo "2278"]
[BlackElo "2662"]
[TimeControl "180+1"]
[EndTime "9:08:23 PST"]
[Termination "MikaelyanArman won on time"]

1. e4 {[%clk 0:03:00.9]} 1... c5 {[%clk 0:02:59.3]} 2. Nf3 {[%clk 0:03:01.1]}
2... Nc6 {[%clk 0:02:59.5]} 3. d4 {[%clk 0:03:01.7]} 3... cxd4 {[%clk
0:03:00.4]} 4. Nxd4 {[%clk 0:03:02.6]} 4... g6 {[%clk 0:03:00.6]} 5. c4 {[%clk
0:03:02.1]} 5... Bg7 {[%clk 0:03:00.3]} 6. Be3 {[%clk 0:03:02.5]} 6... Qb6
{[%clk 0:03:00.4]} 7. Nb3 {[%clk 0:02:53.6]} 7... Qc7 {[%clk 0:02:57.4]} 8. Qd2
{[%clk 0:02:52.6]} 8... Nf6 {[%clk 0:02:56.1]} 9. Nc3 {[%clk 0:02:52.1]} 9... d6
{[%clk 0:02:48.5]} 10. Be2 {[%clk 0:02:49.7]} 10... b6 {[%clk 0:02:42.5]} 11.
Rc1 {[%clk 0:02:45.4]} 11... O-O {[%clk 0:02:39.1]} 12. O-O {[%clk 0:02:26.2]}
12... Bb7 {[%clk 0:02:38.5]} 13. Rfd1 {[%clk 0:02:19.1]} 13... Rac8 {[%clk
0:02:32.4]} 14. f3 {[%clk 0:02:17.3]} 14... Qb8 {[%clk 0:02:24.7]} 15. Na1
{[%clk 0:01:51.4]} 15... Rfd8 {[%clk 0:02:15.3]} 16. Nc2 {[%clk 0:01:49.1]}
16... e6 {[%clk 0:01:56.7]} 17. Bg5 {[%clk 0:01:39.5]} 17... Ne5 {[%clk
0:01:49]} 18. b3 {[%clk 0:01:32.7]} 18... a6 {[%clk 0:01:37.4]} 19. Nd4 {[%clk
0:01:19.7]} 19... Qa7 {[%clk 0:01:34.2]} 20. Kh1 {[%clk 0:01:13.7]} 20... Rd7
{[%clk 0:01:31.9]} 21. Bf1 {[%clk 0:00:46.2]} 21... Ba8 {[%clk 0:01:24.2]} 22.
Qf2 {[%clk 0:00:29]} 22... h6 {[%clk 0:01:22.3]} 23. Be3 {[%clk 0:00:27.9]}
23... Qb7 {[%clk 0:01:14.4]} 24. Na4 {[%clk 0:00:26.8]} 24... Qb8 {[%clk
0:00:58.5]} 25. Nxe6 {[%clk 0:00:19.8]} 25... fxe6 {[%clk 0:00:57.6]} 26. Nxb6
{[%clk 0:00:20.5]} 26... Rf7 {[%clk 0:00:48.4]} 27. Nxc8 {[%clk 0:00:20]} 27...
Qxc8 {[%clk 0:00:47.2]} 28. Qd2 {[%clk 0:00:18.7]} 28... Bf8 {[%clk 0:00:32.1]}
29. Bxh6 {[%clk 0:00:18.4]} 29... Bxh6 {[%clk 0:00:27.3]} 30. Qxh6 {[%clk
0:00:17.9]} 30... Qc5 {[%clk 0:00:26.4]} 31. Qd2 {[%clk 0:00:09.6]} 31... Nfg4
{[%clk 0:00:21.8]} 32. fxg4 {[%clk 0:00:05]} 32... Nxg4 {[%clk 0:00:22.7]} 33.
h3 {[%clk 0:00:03.4]} 33... Nf2+ {[%clk 0:00:21.8]} 34. Kh2 {[%clk 0:00:03.3]}
34... Qe5+ {[%clk 0:00:15.1]} 35. Kg1 {[%clk 0:00:03.7]} 35... Qg3 {[%clk
0:00:15.1]} 36. Qc3 {[%clk 0:00:01.6]} 36... Nxh3+ {[%clk 0:00:12.7]} 37. Kh1
{[%clk 0:00:02]} 37... Nf2+ {[%clk 0:00:12.7]} 38. Kg1 {[%clk 0:00:02.6]} 38...
Qh4 {[%clk 0:00:11.9]} 39. Qf3 {[%clk 0:00:01.3]} 39... Rxf3 {[%clk 0:00:10.6]}
40. gxf3 {[%clk 0:00:02.2]} 40... Nxd1 {[%clk 0:00:10.6]} 41. Rxd1 {[%clk
0:00:02]} 41... d5 {[%clk 0:00:08.4]} 42. cxd5 {[%clk 0:00:01.7]} 42... exd5
{[%clk 0:00:06.6]} 43. exd5 {[%clk 0:00:02.6]} 43... Qg5+ {[%clk 0:00:06.3]} 44.
Kf2 {[%clk 0:00:01.6]} 44... Kg7 {[%clk 0:00:05]} 45. Bc4 {[%clk 0:00:01.4]}
45... Qh4+ {[%clk 0:00:03.8]} 46. Ke2 {[%clk 0:00:01]} 46... Qh2+ {[%clk
0:00:03.6]} 0-1

[Event "*** Titled Tuesday Blitz"]
[Site "Chess.com"]
[Date "2020.03.03"]
[Round "1"]
[White "djamir"]
[Black "StockholmMissile"]
[Result "1-0"]
[WhiteElo "2753"]
[BlackElo "2394"]
[TimeControl "180+1"]
[EndTime "9:08:25 PST"]
[Termination "djamir won on time"]

1. d4 {[%clk 0:03:00.9]} 1... d5 {[%clk 0:02:57.4]} 2. Bf4 {[%clk 0:03:00.4]}
2... Nf6 {[%clk 0:02:55.6]} 3. e3 {[%clk 0:03:00.7]} 3... c5 {[%clk 0:02:55.7]}
4. c3 {[%clk 0:03:00.6]} 4... Nc6 {[%clk 0:02:55.5]} 5. Nd2 {[%clk 0:03:00.8]}
5... e6 {[%clk 0:02:54]} 6. Ngf3 {[%clk 0:02:59.8]} 6... Be7 {[%clk 0:02:54]} 7.
Ne5 {[%clk 0:02:55.1]} 7... Nxe5 {[%clk 0:02:46.5]} 8. Bxe5 {[%clk 0:02:56]}
8... O-O {[%clk 0:02:45.7]} 9. Bd3 {[%clk 0:02:55.9]} 9... Nd7 {[%clk
0:02:42.5]} 10. Bg3 {[%clk 0:02:49.8]} 10... Nf6 {[%clk 0:02:30.7]} 11. O-O
{[%clk 0:02:41]} 11... Bd6 {[%clk 0:02:30.2]} 12. f4 {[%clk 0:02:38.5]} 12... b6
{[%clk 0:02:27.7]} 13. Bh4 {[%clk 0:02:22.3]} 13... Be7 {[%clk 0:02:27.1]} 14.
Qf3 {[%clk 0:02:01.2]} 14... Bb7 {[%clk 0:02:06.4]} 15. Bxf6 {[%clk 0:01:44.2]}
15... Bxf6 {[%clk 0:02:05.3]} 16. Qh3 {[%clk 0:01:44.4]} 16... g6 {[%clk
0:02:03.1]} 17. Nf3 {[%clk 0:01:44.6]} 17... a5 {[%clk 0:01:58]} 18. Rf2 {[%clk
0:01:41.4]} 18... Ba6 {[%clk 0:01:57.2]} 19. Bc2 {[%clk 0:01:41.7]} 19... b5
{[%clk 0:01:37.1]} 20. Ne5 {[%clk 0:01:26.6]} 20... b4 {[%clk 0:01:30.2]} 21.
Re1 {[%clk 0:01:19.8]} 21... Qc7 {[%clk 0:01:26.9]} 22. Ba4 {[%clk 0:01:18.2]}
22... Bg7 {[%clk 0:01:15.8]} 23. g4 {[%clk 0:01:14.2]} 23... Rad8 {[%clk
0:00:56.9]} 24. g5 {[%clk 0:01:09.1]} 24... Bxe5 {[%clk 0:00:24.1]} 25. fxe5
{[%clk 0:01:09.9]} 25... cxd4 {[%clk 0:00:21.3]} 26. cxd4 {[%clk 0:01:09.7]}
26... Bd3 {[%clk 0:00:21.3]} 27. Bd1 {[%clk 0:01:02.2]} 27... Rc8 {[%clk
0:00:20]} 28. Bg4 {[%clk 0:01:00.8]} 28... a4 {[%clk 0:00:18.1]} 29. Rd1 {[%clk
0:00:51.7]} 29... Be4 {[%clk 0:00:17.4]} 30. Bf3 {[%clk 0:00:51.6]} 30... Bf5
{[%clk 0:00:17.2]} 31. Qg2 {[%clk 0:00:51.8]} 31... b3 {[%clk 0:00:16.6]} 32. a3
{[%clk 0:00:51.3]} 32... Qa5 {[%clk 0:00:15.6]} 33. e4 {[%clk 0:00:47.9]} 33...
dxe4 {[%clk 0:00:15.1]} 34. Bxe4 {[%clk 0:00:48.8]} 34... Bxe4 {[%clk
0:00:13.4]} 35. Qxe4 {[%clk 0:00:49.7]} 35... Qd5 {[%clk 0:00:08.9]} 36. Qf4
{[%clk 0:00:48.6]} 36... Rc7 {[%clk 0:00:08.5]} 37. h4 {[%clk 0:00:48.6]} 37...
Rc2 {[%clk 0:00:05]} 38. Rdf1 {[%clk 0:00:47.2]} 38... Rxf2 {[%clk 0:00:04.7]}
39. Rxf2 {[%clk 0:00:48.1]} 39... Qd7 {[%clk 0:00:04.9]} 40. h5 {[%clk
0:00:47.8]} 40... gxh5 {[%clk 0:00:03.5]} 41. Kh1 {[%clk 0:00:38.5]} 41... Rd8
{[%clk 0:00:03.3]} 42. Kh2 {[%clk 0:00:36]} 42... Rc8 {[%clk 0:00:03.1]} 43. Kh3
{[%clk 0:00:34.5]} 43... Rc2 {[%clk 0:00:03]} 44. Kh4 {[%clk 0:00:30.4]} 44...
Rxf2 {[%clk 0:00:02.7]} 45. Qxf2 {[%clk 0:00:31.3]} 45... Qd5 {[%clk 0:00:03]}
46. Kxh5 {[%clk 0:00:31]} 46... Qh1+ {[%clk 0:00:03]} 47. Kg4 {[%clk 0:00:31.5]}
47... Qe4+ {[%clk 0:00:03.3]} 48. Kg3 {[%clk 0:00:31.3]} 48... Qd3+ {[%clk
0:00:02.8]} 49. Kf4 {[%clk 0:00:31.2]} 49... Qc2 {[%clk 0:00:02.5]} 50. Ke3
{[%clk 0:00:31.5]} 50... Qc4 {[%clk 0:00:02.3]} 51. Qe2 {[%clk 0:00:30.1]} 51...
Qc1+ {[%clk 0:00:02.2]} 52. Qd2 {[%clk 0:00:29.1]} 52... Qg1+ {[%clk 0:00:02.1]}
53. Kd3 {[%clk 0:00:29.4]} 53... Qf1+ {[%clk 0:00:02]} 54. Kc3 {[%clk
0:00:29.5]} 54... Qb5 {[%clk 0:00:01.9]} 55. Qd3 {[%clk 0:00:28.8]} 55... Qb6
{[%clk 0:00:01.4]} 56. Qc4 {[%clk 0:00:28.1]} 1-0